bitfinex/quotes_BTCUSD_20250604
["timestamp","ask_amount","ask_price","bid_price","bid_amount"]
[1749047697442,0.22234167,104680.0,104670.0,0.001]
[1749047697653,0.01454085,104670.0,104660.0,0.04413805]
[1749047697876,0.5284834,104670.0,104660.0,0.04413805]
[1749047698365,0.5284834,104670.0,104660.0,0.00013805]
[1749047698582,0.5284834,104670.0,104660.0,0.16209805]
[1749047698805,0.34,104660.0,104640.0,0.0324]
[1749047699034,0.48159515,104660.0,104650.0,0.16192]
[1749047699250,0.57450391,104660.0,104650.0,0.16192]
[1749047700218,0.51949028,104660.0,104650.0,0.16192]
[1749047700444,0.51949028,104660.0,104650.0,0.16292]
[1749047700445,0.48829028,104660.0,104650.0,0.16292]
[1749047700914,0.37789513,104660.0,104650.0,0.16292]
[1749047701360,0.37789513,104660.0,104650.0,0.16296]
[1749047701589,0.37789513,104660.0,104650.0,0.22406]
[1749047701824,0.37789513,104660.0,104650.0,0.26806]
[1749047701825,0.03789513,104660.0,104650.0,0.26806]
[1749047702292,0.01454085,104680.0,104650.0,0.26806]
[1749047702521,0.48113014,104680.0,104650.0,0.26806]
[1749047702765,0.34,104670.0,104650.0,0.26806]
[1749047702984,0.34,104670.0,104660.0,0.19226]
[1749047704154,0.34,104670.0,104660.0,0.0303]
[1749047704400,0.35454085,104670.0,104650.0,0.0301]
[1749047704632,0.50233337,104670.0,104640.0,0.11033815]
[1749047704854,0.55403337,104670.0,104660.0,0.16192]
[1749047705266,0.01454085,104660.0,104640.0,0.07703815]
[1749047705492,0.11039515,104660.0,104650.0,0.16192]
[1749047705739,0.16579849,104660.0,104650.0,0.16192]
[1749047706006,0.16579849,104660.0,104650.0,0.16292]
[1749047706238,0.16579849,104660.0,104650.0,0.001]
[1749047706465,0.16579849,104660.0,104650.0,0.16192]
[1749047706698,0.16579849,104660.0,104650.0,0.16292]
[1749047708398,0.16579849,104660.0,104650.0,0.002]
[1749047708608,0.16579849,104660.0,104650.0,0.16392]
[1749047709042,0.17710878,104660.0,104650.0,0.002]
[1749047709258,0.20971761,104660.0,104650.0,0.16192]
[1749047709469,5.59971761,104660.0,104650.0,0.16192]
[1749047709676,5.6087729,104660.0,104650.0,0.16192]
[1749047710329,5.59745378,104660.0,104650.0,0.16192]
[1749047710547,5.5761729,104660.0,104650.0,0.16192]
[1749047710967,0.47076956,104660.0,104650.0,0.16192]
[1749047711386,0.46171427,104660.0,104650.0,0.16192]
[1749047712021,0.47076956,104660.0,104650.0,0.16192]
[1749047712451,0.47076956,104660.0,104610.0,0.27078]
[1749047712452,0.34,104650.0,104610.0,0.27078]
[1749047712657,0.34,104650.0,104640.0,0.0328]
[1749047712868,0.34,104650.0,104640.0,0.20367504]
[1749047713070,0.3885839,104650.0,104640.0,0.19472]
[1749047713713,0.3885839,104650.0,104640.0,0.19572]
[1749047713930,0.3885839,104650.0,104640.0,0.20467502]
[1749047714094,0.3885839,104650.0,104640.0,0.19572]
[1749047715414,0.3885839,104650.0,104640.0,0.20467502]
[1749047715826,0.3885839,104650.0,104640.0,0.19572]
[1749047716644,0.3885839,104650.0,104640.0,0.19672]
[1749047717250,0.3885839,104650.0,104640.0,0.22358506]
[1749047717453,0.3885839,104650.0,104640.0,0.21463004]
[1749047717658,0.3885839,104650.0,104640.0,0.22358506]
[1749047717898,0.3885839,104650.0,104640.0,0.21463004]
[1749047718097,0.6861839,104650.0,104640.0,0.21463004]
[1749047718296,0.69524726,104650.0,104640.0,0.21463004]
[1749047718465,0.69524726,104650.0,104640.0,0.22358506]
[1749047718670,0.69524726,104650.0,104640.0,0.21459004]
[1749047719728,0.39764726,104650.0,104640.0,0.21459004]
[1749047719922,0.3885839,104650.0,104640.0,0.21459004]
[1749047721107,0.3885839,104650.0,104640.0,0.22354508]
[1749047721315,0.3885839,104650.0,104640.0,0.18179004]
[1749047721671,0.0485839,104650.0,104640.0,0.21449004]
[1749047721884,0.34,104650.0,104640.0,0.22344508]
[1749047722088,0.34,104650.0,104640.0,0.21449004]
[1749047722483,0.34,104650.0,104640.0,0.22344508]
[1749047722901,0.34,104650.0,104640.0,0.24519004]
[1749047723101,0.34,104650.0,104640.0,0.25414506]
[1749047723452,0.39145527,104650.0,104640.0,0.24519004]
[1749047723675,0.39145527,104650.0,104640.0,0.25414506]
[1749047723878,0.39145527,104650.0,104640.0,0.21449004]
[1749047724221,0.41186029,104650.0,104640.0,0.21449004]
[1749047724672,0.41186029,104650.0,104640.0,0.24619004]
[1749047725291,0.41186029,104650.0,104640.0,0.25514506]
[1749047725569,0.41186029,104650.0,104640.0,0.24619004]
[1749047726289,0.41186029,104650.0,104640.0,0.25514506]
[1749047726729,0.41190316,104650.0,104640.0,0.25514506]
[1749047726954,0.07190316,104650.0,104640.0,0.25514506]
[1749047727184,0.36044789,104650.0,104640.0,0.24619004]
[1749047729137,0.37559448,104650.0,104640.0,0.01991004]
[1749047729359,0.42819448,104650.0,104640.0,0.01991004]
[1749047729560,0.42819448,104650.0,104640.0,0.18175004]
[1749047729561,0.39553454,104650.0,104640.0,0.18175004]
[1749047729781,0.4541448,104650.0,104640.0,0.18175004]
[1749047730189,0.45415073,104650.0,104640.0,0.18175004]
[1749047730846,5.66614575,104650.0,104640.0,0.16184]
[1749047731056,0.01454085,104640.0,104620.0,0.10772]
[1749047731260,0.56715218,104640.0,104630.0,0.16184]
[1749047731476,0.34,104630.0,104620.0,0.10772]
[1749047731679,0.36045749,104630.0,104620.0,0.10772]
[1749047731888,0.36045749,104630.0,104620.0,0.26956]
[1749047732300,0.36045749,104630.0,104620.0,0.22664]
[1749047732494,0.08117768,104630.0,104620.0,0.22564]
[1749047732719,0.02045749,104630.0,104620.0,0.22564]
[1749047732924,0.02045749,104630.0,104620.0,0.22664]
[1749047733156,0.02045749,104630.0,104620.0,0.22764]
[1749047733363,0.0494333,104630.0,104620.0,0.22764]
[1749047733581,0.02045749,104630.0,104620.0,0.22764]
[1749047734244,0.15423321,104640.0,104620.0,0.0648]
[1749047734471,0.06428877,104640.0,104620.0,0.20676]
[1749047734685,0.10421863,104640.0,104620.0,0.20676]
[1749047734907,0.10421863,104640.0,104630.0,0.0317]
[1749047735159,0.10421863,104640.0,104630.0,0.0635]
[1749047736005,0.74181863,104640.0,104630.0,0.0635]
[1749047736206,0.74281863,104640.0,104630.0,0.0635]
[1749047737095,0.74281863,104640.0,104630.0,0.22534]
[1749047738204,0.77114897,104640.0,104630.0,0.22534]
[1749047738441,0.77114966,104640.0,104630.0,0.22534]
[1749047739584,0.77114966,104640.0,104630.0,0.26922]
[1749047740310,0.37841985,104640.0,104630.0,0.26922]
[1749047740554,0.02933034,104640.0,104630.0,0.26922]
[1749047741060,0.0003163,104650.0,104640.0,0.0647]
[1749047741296,0.0491324,104660.0,104640.0,0.0647]
[1749047741527,0.5566263,104660.0,104650.0,0.1618]
[1749047741758,0.5566263,104660.0,104650.0,0.1944]
[1749047742458,0.55662646,104660.0,104650.0,0.1618]
[1749047742974,0.55962646,104660.0,104650.0,0.1618]
[1749047743470,0.34,104650.0,104640.0,0.0644]
[1749047743684,0.34,104650.0,104640.0,0.27012]
[1749047744324,0.02345156,104660.0,104650.0,0.0619]
[1749047744537,0.006,104660.0,104650.0,0.0619]
[1749047744752,0.346,104660.0,104650.0,0.0619]
[1749047744960,0.34,104660.0,104650.0,0.0619]
[1749047745183,0.35171632,104670.0,104660.0,0.0627]
[1749047745402,0.11296278,104670.0,104660.0,0.2245]
[1749047745615,0.47317365,104670.0,104660.0,0.2245]
[1749047746052,0.46181167,104670.0,104660.0,0.2245]
[1749047747856,0.46381167,104670.0,104660.0,0.2245]
[1749047748094,0.46881167,104670.0,104660.0,0.2245]
[1749047748301,0.37130045,104670.0,104660.0,0.2245]
[1749047748503,0.37330045,104670.0,104660.0,0.2245]
[1749047749372,0.37330045,104670.0,104660.0,0.0627]
[1749047749578,0.38465755,104670.0,104660.0,0.26838]
[1749047750006,0.47716877,104670.0,104660.0,0.0627]
[1749047750220,0.34,104660.0,104650.0,0.10734]
[1749047750432,0.34,104660.0,104650.0,0.2691]
[1749047750875,0.34,104660.0,104650.0,0.0635]
[1749047751081,0.34,104660.0,104650.0,0.07684]
[1749047751296,0.39800907,104660.0,104650.0,0.2386]
[1749047751513,0.39900907,104660.0,104650.0,0.2386]
[1749047751740,0.49486337,104660.0,104650.0,0.23856]
[1749047752153,0.49486337,104660.0,104640.0,0.0613]
[1749047752362,0.52075127,104660.0,104650.0,0.16172]
[1749047752593,0.54943327,104660.0,104650.0,0.16172]
[1749047752810,0.55851091,104660.0,104650.0,0.16172]
[1749047753021,0.54616386,104660.0,104650.0,0.16172]
[1749047753230,0.49950184,104660.0,104650.0,0.19432]
[1749047753440,0.47907715,104660.0,104650.0,0.19432]
[1749047754096,0.48007715,104660.0,104650.0,0.19432]
[1749047754365,0.49142087,104660.0,104650.0,0.19432]
[1749047755407,0.49142087,104660.0,104640.0,0.10604]
[1749047755627,0.55851503,104660.0,104650.0,0.16172]
[1749047755834,0.56759,104660.0,104650.0,0.16172]
[1749047756478,0.56659,104660.0,104650.0,0.16172]
[1749047757827,0.56759,104660.0,104650.0,0.16172]
[1749047758917,0.01454085,104650.0,104620.0,0.00048214]
[1749047759210,0.34,104640.0,104630.0,0.20552]
[1749047760110,0.34,104640.0,104630.0,0.16168]
[1749047760328,0.368685,104640.0,104630.0,0.16168]
[1749047760973,0.369685,104640.0,104630.0,0.16168]
[1749047761178,0.43239648,104640.0,104630.0,0.16168]
[1749047761387,0.52825078,104640.0,104630.0,0.16168]
[1749047761597,0.53732464,104640.0,104630.0,0.16168]
[1749047761807,0.53732398,104640.0,104630.0,0.16168]
[1749047762037,0.53732398,104640.0,104620.0,0.04432214]
[1749047762038,0.56352398,104640.0,104620.0,0.04432214]
[1749047762252,0.56352398,104640.0,104630.0,0.16168]
[1749047762253,0.57806483,104640.0,104630.0,0.16168]
[1749047762584,0.01454085,104630.0,104620.0,0.04432214]
[1749047762586,0.01454085,104630.0,104610.0,0.10834]
[1749047762787,0.01454085,104630.0,104620.0,0.16168]
[1749047762788,0.20075572,104630.0,104620.0,0.16168]
[1749047763201,0.20075572,104630.0,104620.0,0.16268]
[1749047763415,0.19834672,104630.0,104620.0,0.16268]
[1749047763632,0.19834672,104630.0,104620.0,0.16168]
[1749047763855,0.19834672,104630.0,104620.0,0.16268]
[1749047764088,0.34,104620.0,104610.0,0.06822465]
[1749047764301,0.5401412,104620.0,104610.0,0.16168]
[1749047764498,0.61332013,104620.0,104610.0,0.16168]
[1749047764906,0.61332013,104620.0,104600.0,0.04384]
[1749047765117,0.61332013,104620.0,104610.0,0.16168]
[1749047765317,0.64201213,104620.0,104600.0,0.04384]
[1749047765545,0.64201213,104620.0,104610.0,0.16268]
[1749047766379,0.64201213,104620.0,104610.0,0.16368]
[1749047766683,0.64201213,104620.0,104610.0,0.16268]
[1749047770094,0.6419913,104620.0,104610.0,0.16268]
[1749047770516,0.6419913,104620.0,104610.0,0.001]
[1749047770716,0.6419913,104620.0,104610.0,0.16268]
[1749047771668,0.6429913,104620.0,104610.0,0.16168]
[1749047771869,0.6439913,104620.0,104610.0,0.16168]
[1749047772714,0.01454085,104610.0,104600.0,0.04384]
[1749047772948,0.17479428,104610.0,104600.0,0.04384]
[1749047773767,0.11039515,104610.0,104600.0,0.07384]
[1749047774027,0.11039515,104610.0,104600.0,0.26728]
[1749047774423,0.5748,104600.0,104590.0,0.04384]
[1749047774656,0.34,104600.0,104570.0,0.0001447]
[1749047774893,0.34,104600.0,104590.0,0.04384]
[1749047775090,0.37877867,104600.0,104590.0,0.04384]
[1749047775503,0.37877867,104600.0,104590.0,0.20548]
[1749047776415,0.40673937,104600.0,104590.0,0.20548]
[1749047777259,0.40673937,104600.0,104580.0,0.0958543]
[1749047777452,0.44741331,104600.0,104590.0,0.26728]
[1749047777649,0.40673937,104600.0,104590.0,0.26928]
[1749047778211,0.40673937,104600.0,104590.0,0.27128]
[1749047778623,0.40673937,104600.0,104590.0,0.28919607]
[1749047778826,0.40673937,104600.0,104590.0,0.27128]
[1749047779606,0.40673937,104600.0,104590.0,0.0658]
[1749047779843,0.44741331,104600.0,104590.0,0.23908]
[1749047780302,0.44741331,104600.0,104590.0,0.07744]
[1749047780620,0.44741331,104600.0,104590.0,0.20948]
[1749047781040,0.44741331,104600.0,104590.0,0.004]
[1749047781325,0.44741331,104600.0,104590.0,0.20936]
[1749047782051,0.51111331,104600.0,104590.0,0.01295942]
[1749047782298,0.48051331,104600.0,104590.0,0.16564]
[1749047782533,0.48051331,104600.0,104590.0,0.17459945]
[1749047782764,0.48051331,104600.0,104590.0,0.004]
[1749047783006,0.48051331,104600.0,104590.0,0.16164]
[1749047783193,0.48051331,104600.0,104590.0,0.16264]
[1749047783642,0.48151331,104600.0,104590.0,0.16264]
[1749047784510,0.48151331,104600.0,104590.0,0.16164]
[1749047784713,0.48251331,104600.0,104590.0,0.16164]
[1749047786234,0.71731331,104600.0,104590.0,0.16164]
[1749047786417,0.72636888,104600.0,104590.0,0.16164]
[1749047786675,0.72638345,104600.0,104590.0,0.16164]
[1749047787839,0.72638345,104600.0,104580.0,0.10526]
[1749047788057,0.82223775,104600.0,104590.0,0.1616]
[1749047788493,0.82223775,104600.0,104590.0,0.20536]
[1749047788705,0.82123775,104600.0,104580.0,0.0615]
[1749047788915,0.82123775,104600.0,104590.0,0.20536]
[1749047789761,0.86167543,104600.0,104590.0,0.1616]
[1749047790844,0.65162638,104600.0,104590.0,0.2218]
[1749047791777,0.65262638,104600.0,104590.0,0.2218]
[1749047792205,0.65262638,104600.0,104590.0,0.23075897]
[1749047792642,0.65262638,104600.0,104590.0,0.2218]
[1749047792868,0.65262638,104600.0,104590.0,0.23075897]
[1749047793134,0.65262638,104600.0,104590.0,0.2218]
[1749047793394,0.41782638,104600.0,104590.0,0.0602]
[1749047793640,0.40873937,104600.0,104590.0,0.22176]
[1749047794359,0.45165789,104600.0,104590.0,0.07246]
[1749047794600,0.45165789,104600.0,104590.0,0.21427878]
[1749047794832,0.34,104590.0,104580.0,0.07255961]
[1749047795038,0.34,104590.0,104580.0,0.27787961]
[1749047795250,0.34,104590.0,104580.0,0.08151879]
[1749047795458,0.34,104590.0,104580.0,0.27787961]
[1749047795886,0.10965789,104600.0,104580.0,0.2868388]
[1749047796101,0.10965789,104600.0,104580.0,0.27887961]
[1749047796318,0.10965789,104600.0,104580.0,0.07355961]
[1749047796531,0.14245789,104600.0,104590.0,0.20532]
[1749047796742,0.48245789,104600.0,104590.0,0.21427919]
[1749047796956,0.48245789,104600.0,104590.0,0.20532]
[1749047797801,0.34,104590.0,104580.0,0.07255961]
[1749047798025,0.42429218,104590.0,104580.0,0.24517961]
[1749047798468,0.42429218,104590.0,104580.0,0.03985961]
[1749047798688,0.34,104590.0,104580.0,0.27867961]
[1749047798951,0.06773937,104600.0,104590.0,0.0628]
[1749047799159,0.06673937,104600.0,104590.0,0.0628]
[1749047799577,0.41976738,104610.0,104590.0,0.0628]
[1749047799799,0.57701599,104610.0,104600.0,0.16156]
[1749047800683,0.61531364,104610.0,104600.0,0.16156]
[1749047801571,0.63039812,104610.0,104600.0,0.16156]
[1749047801795,0.61531364,104610.0,104600.0,0.16156]
[1749047802057,0.61731364,104610.0,104600.0,0.16156]
[1749047802264,0.61931364,104610.0,104600.0,0.16156]
[1749047802742,0.64862308,104610.0,104600.0,0.16156]
[1749047802921,0.61952308,104610.0,104600.0,0.16156]
[1749047803166,0.52792877,104610.0,104600.0,0.16156]
[1749047803384,0.52793252,104610.0,104600.0,0.19076]
[1749047804102,0.7627355,104610.0,104600.0,0.19076]
[1749047804778,0.6668812,104610.0,104600.0,0.19076]
[1749047804992,0.6577816,104610.0,104600.0,0.19076]
[1749047805195,0.50711077,104610.0,104600.0,0.19076]
[1749047805661,0.51711146,104610.0,104600.0,0.19076]
[1749047807263,0.51711909,104610.0,104600.0,0.19076]
[1749047807485,0.49663675,104610.0,104600.0,0.19076]
[1749047807693,0.51712285,104610.0,104600.0,0.19076]
[1749047808891,0.44209388,104610.0,104600.0,0.22016]
[1749047809115,0.08160778,104610.0,104600.0,0.22016]
[1749047809563,0.42160778,104610.0,104600.0,0.22016]
[1749047809998,0.42160778,104610.0,104600.0,0.0586]
[1749047810212,0.42160778,104610.0,104600.0,0.22008]
[1749047810441,0.46581908,104610.0,104600.0,0.0586]
[1749047810670,0.46581908,104610.0,104600.0,0.26372]
[1749047810889,0.46381908,104610.0,104600.0,0.26372]
[1749047811318,0.46481908,104610.0,104600.0,0.26372]
[1749047811802,0.46281908,104610.0,104600.0,0.26372]
[1749047812013,0.46381908,104610.0,104600.0,0.26372]
[1749047812230,0.46381908,104610.0,104600.0,0.20508]
[1749047812472,0.46281908,104610.0,104600.0,0.20508]
[1749047812702,0.46381908,104610.0,104600.0,0.20508]
[1749047813413,0.46381908,104610.0,104600.0,0.04364]
[1749047813666,0.46381908,104610.0,104600.0,0.20508]
[1749047815472,0.46381908,104610.0,104600.0,0.04364]
[1749047815689,0.48431705,104610.0,104600.0,0.20508]
[1749047815899,0.51461705,104610.0,104600.0,0.20508]
[1749047816114,0.48431705,104610.0,104600.0,0.22068]
[1749047816561,0.46381908,104610.0,104600.0,0.22068]
[1749047816793,0.47292929,104610.0,104600.0,0.22068]
[1749047817000,0.48431705,104610.0,104600.0,0.22068]
[1749047818817,0.71911705,104610.0,104600.0,0.22068]
[1749047819874,0.71911811,104610.0,104600.0,0.22068]
[1749047821368,0.71911811,104610.0,104600.0,0.22064]
[1749047822231,0.71911811,104610.0,104600.0,0.05924]
[1749047822446,0.7191229,104610.0,104600.0,0.20504]
[1749047824911,0.7191229,104610.0,104600.0,0.22054]
[1749047825155,0.6749116,104610.0,104600.0,0.22054]
[1749047825361,0.66352059,104610.0,104600.0,0.25034]
[1749047825829,0.08872059,104610.0,104600.0,0.3461943]
[1749047826034,0.07960778,104610.0,104600.0,0.3461943]
[1749047827150,0.07760778,104610.0,104600.0,0.3461943]
[1749047827358,0.07760778,104610.0,104600.0,0.3501943]
[1749047828218,0.04829834,104610.0,104600.0,0.3501943]
[1749047829049,0.01000069,104610.0,104600.0,0.3501943]
[1749047832090,0.00528379,104620.0,104600.0,0.3048943]
[1749047832331,0.34,104640.0,104630.0,0.0324]
[1749047832332,0.02932866,104640.0,104630.0,0.0324]
[1749047832533,0.02932866,104640.0,104630.0,0.23736]
[1749047832738,0.07594096,104650.0,104630.0,0.23736]
[1749047833168,0.15358421,104650.0,104640.0,0.16128]
[1749047833586,0.15406545,104650.0,104630.0,0.06024]
[1749047833797,0.15406545,104650.0,104640.0,0.16128]
[1749047834008,0.1077222,104650.0,104640.0,0.16128]
[1749047834432,0.0954222,104650.0,104640.0,0.16128]
[1749047834670,0.0804222,104650.0,104640.0,0.17708]
[1749047834879,0.11579891,104650.0,104640.0,0.17708]
[1749047835516,0.11379891,104650.0,104640.0,0.17708]
[1749047835724,0.11779891,104650.0,104640.0,0.16128]
[1749047836178,0.13389891,104650.0,104640.0,0.16128]
[1749047836388,0.16219147,104650.0,104640.0,0.16128]
[1749047836597,0.16219147,104650.0,104640.0,0.16124]
[1749047837255,0.07015051,104650.0,104640.0,0.16124]
[1749047838515,0.07015051,104650.0,104640.0,0.19234]
[1749047839370,0.06615051,104650.0,104640.0,0.19234]
[1749047840357,0.06215051,104650.0,104640.0,0.22098]
[1749047840577,0.06615051,104650.0,104640.0,0.20488]
[1749047840810,0.06615051,104650.0,104640.0,0.22128]
[1749047841161,0.06615051,104650.0,104640.0,0.20488]
[1749047841387,0.06615051,104650.0,104640.0,0.22128]
[1749047841590,0.06615051,104650.0,104640.0,0.20488]
[1749047841762,0.06615051,104650.0,104630.0,0.0164]
[1749047841989,0.14374095,104650.0,104640.0,0.20472]
[1749047842189,0.48374095,104650.0,104640.0,0.20472]
[1749047842625,0.49957193,104650.0,104640.0,0.20472]
[1749047842824,0.48407173,104650.0,104640.0,0.20472]
[1749047842995,0.46624095,104650.0,104640.0,0.20472]
[1749047843250,0.42005051,104650.0,104640.0,0.20472]
[1749047843940,0.40515051,104650.0,104640.0,0.22102]
[1749047844364,0.40415051,104650.0,104640.0,0.22102]
[1749047844847,0.40615051,104650.0,104640.0,0.22102]
[1749047845061,0.40615051,104650.0,104640.0,0.20472]
[1749047846671,0.40615051,104650.0,104640.0,0.0166]
[1749047846868,0.40615051,104650.0,104640.0,0.22128]
[1749047847946,0.40615051,104650.0,104640.0,0.06012]
[1749047848153,0.40615051,104650.0,104640.0,0.22128]
[1749047851317,0.40615051,104650.0,104640.0,0.23758]
[1749047851973,0.40615051,104650.0,104640.0,0.22128]
[1749047855649,0.40615051,104650.0,104640.0,0.20468]
[1749047856082,0.40615051,104650.0,104640.0,0.22088]
[1749047856748,0.41526043,104650.0,104640.0,0.22088]
[1749047857820,0.43310574,104650.0,104640.0,0.22088]
[1749047858032,0.41526043,104650.0,104640.0,0.22088]
[1749047858512,0.43310589,104650.0,104640.0,0.22088]
[1749047858734,0.41526043,104650.0,104640.0,0.22088]
[1749047858937,0.43310589,104650.0,104640.0,0.22088]
[1749047859144,0.41526043,104650.0,104640.0,0.22088]
[1749047860178,0.41528107,104650.0,104640.0,0.22088]
[1749047860601,0.42669427,104650.0,104640.0,0.20468]
[1749047861018,0.44455752,104650.0,104640.0,0.22098]
[1749047861272,0.42669427,104650.0,104640.0,0.22098]
[1749047861678,0.44456268,104650.0,104640.0,0.22098]
[1749047861889,0.44355964,104650.0,104640.0,0.22098]
[1749047862783,0.44289088,104650.0,104640.0,0.22082]
[1749047863200,0.46075829,104650.0,104640.0,0.22082]
[1749047863418,0.44289088,104650.0,104640.0,0.22082]
[1749047865340,0.46074683,104650.0,104640.0,0.22082]
[1749047865565,0.44289088,104650.0,104640.0,0.22082]
[1749047866186,0.46074629,104650.0,104640.0,0.22082]
[1749047866451,0.44289088,104650.0,104640.0,0.22082]
[1749047868630,0.44291126,104650.0,104640.0,0.22082]
[1749047869065,0.44291126,104650.0,104640.0,0.22078]
[1749047869475,0.46076566,104650.0,104640.0,0.22078]
[1749047869678,0.46076567,104650.0,104640.0,0.22078]
[1749047869892,0.44291126,104650.0,104640.0,0.22078]
[1749047870334,0.46076563,104650.0,104640.0,0.22078]
[1749047870537,0.44291126,104650.0,104640.0,0.22078]
[1749047871389,0.44291126,104650.0,104640.0,0.20448]
[1749047873090,0.44291126,104650.0,104640.0,0.20444]
[1749047874851,0.44291126,104650.0,104630.0,0.0307]
[1749047875057,0.52126242,104650.0,104640.0,0.20432]
[1749047875301,0.44291126,104650.0,104640.0,0.20432]
[1749047875949,0.44091126,104650.0,104640.0,0.20432]
[1749047876367,0.44191126,104650.0,104640.0,0.20432]
[1749047876624,0.44191126,104650.0,104630.0,0.0307]
[1749047876853,0.4409163,104650.0,104640.0,0.20432]
[1749047877094,0.4429163,104650.0,104640.0,0.20432]
[1749047877337,0.34,104640.0,104620.0,0.0312]
[1749047877533,0.37686556,104640.0,104630.0,0.20432]
[1749047877740,0.39216556,104640.0,104630.0,0.20432]
[1749047878172,0.53556148,104640.0,104610.0,0.0312]
[1749047878379,0.59077633,104640.0,104630.0,0.04336]
[1749047878600,0.57562738,104640.0,104630.0,0.04336]
[1749047878838,0.61233138,104640.0,104630.0,0.04336]
[1749047879049,0.61133138,104640.0,104630.0,0.04336]
[1749047879254,0.59347938,104640.0,104630.0,0.20428]
[1749047879468,0.59447938,104640.0,104630.0,0.20428]
[1749047879899,0.59547938,104640.0,104630.0,0.20428]
[1749047880801,0.59544687,104640.0,104630.0,0.20428]
[1749047881240,0.5223802,104640.0,104630.0,0.20428]
[1749047881728,0.54023204,104640.0,104630.0,0.20428]
[1749047881945,0.5223802,104640.0,104630.0,0.04336]
[1749047882362,0.54023172,104640.0,104630.0,0.04336]
[1749047882568,0.54023181,104640.0,104630.0,0.04336]
[1749047882783,0.55183329,104640.0,104630.0,0.04336]
[1749047883204,0.55183329,104640.0,104630.0,0.20428]
[1749047883413,0.56968363,104640.0,104630.0,0.20428]
[1749047883617,0.55183329,104640.0,104630.0,0.20428]
[1749047883824,0.53130024,104640.0,104630.0,0.20428]
[1749047884029,0.55181795,104640.0,104630.0,0.20428]
[1749047886144,0.55181795,104640.0,104630.0,0.04336]
[1749047886355,0.01454085,104630.0,104620.0,0.04336]
[1749047886563,0.56575552,104630.0,104620.0,0.04336]
[1749047887006,0.56575552,104630.0,104620.0,0.20424]
[1749047887636,0.56575552,104630.0,104620.0,0.20524]
[1749047889688,0.5738,104620.0,104600.0,0.23762]
[1749047889906,0.58291898,104620.0,104610.0,0.04336]
[1749047890334,0.66287453,104620.0,104610.0,0.04336]
[1749047890756,0.67837453,104620.0,104610.0,0.04336]
[1749047890973,0.67837453,104620.0,104610.0,0.20424]
[1749047891597,0.67837453,104620.0,104600.0,0.23762]
[1749047891809,0.67837453,104620.0,104610.0,0.04536]
[1749047891810,0.72541413,104620.0,104610.0,0.04536]
[1749047892026,0.72539843,104620.0,104610.0,0.20624]
[1749047892246,0.61954085,104610.0,104600.0,0.24972]
[1749047892480,0.587,104600.0,104580.0,0.02425961]
[1749047892695,0.587,104600.0,104590.0,0.16088]
[1749047892696,0.72189843,104600.0,104590.0,0.16088]
[1749047892910,0.72189843,104600.0,104580.0,0.02425961]
[1749047893140,0.5718,104590.0,104580.0,0.00895961]
[1749047893352,0.58090328,104590.0,104580.0,0.16983961]
[1749047893554,0.58090328,104590.0,104580.0,0.17032085]
[1749047894214,0.58090328,104590.0,104580.0,0.21372085]
[1749047894657,0.5718,104590.0,104580.0,0.02744085]
[1749047894863,0.5718,104590.0,104580.0,0.23168085]
[1749047895078,0.5718,104590.0,104580.0,0.22868085]
[1749047895750,0.60004057,104590.0,104580.0,0.22868085]
[1749047896814,0.60004057,104590.0,104580.0,0.04014085]
[1749047897060,0.26004057,104590.0,104580.0,0.24438085]
[1749047897275,0.2318,104610.0,104600.0,0.032]
[1749047897479,0.2318,104610.0,104600.0,0.23624]
[1749047897696,0.25061147,104610.0,104600.0,0.23624]
[1749047898125,0.59061147,104610.0,104600.0,0.23624]
[1749047898340,0.5718,104610.0,104600.0,0.23624]
[1749047898996,0.5728,104610.0,104600.0,0.23624]
[1749047899856,0.5728,104610.0,104600.0,0.0754]
[1749047900069,0.5728,104610.0,104600.0,0.23624]
[1749047900521,0.63897537,104610.0,104600.0,0.23624]
[1749047901172,0.64097537,104610.0,104600.0,0.23624]
[1749047901594,0.5748,104610.0,104600.0,0.23624]
[1749047905617,0.5748,104610.0,104600.0,0.2362]
[1749047906053,0.343,104610.0,104600.0,0.2205]
[1749047906264,0.343,104610.0,104600.0,0.2042]
[1749047906687,0.343,104610.0,104600.0,0.22]
[1749047906905,0.3773,104610.0,104600.0,0.22]
[1749047907368,0.3773,104610.0,104600.0,0.2042]
[1749047908411,0.3773,104610.0,104590.0,0.0322]
[1749047908637,0.393,104610.0,104600.0,0.20404]
[1749047909285,0.392,104610.0,104600.0,0.20404]
[1749047910142,0.39,104610.0,104600.0,0.20404]
[1749047910348,0.3557,104610.0,104600.0,0.20404]
[1749047911203,0.3567,104610.0,104600.0,0.20404]
[1749047911412,0.3587,104610.0,104600.0,0.20404]
[1749047912685,0.343,104610.0,104600.0,0.20404]
[1749047915058,0.343,104610.0,104600.0,0.22024]
[1749047915695,0.343,104610.0,104600.0,0.2202]
[1749047915904,0.343,104610.0,104600.0,0.204]
[1749047917719,0.37775329,104610.0,104600.0,0.204]
[1749047917921,0.39305329,104610.0,104600.0,0.04328]
[1749047918130,0.39305329,104610.0,104600.0,0.204]
[1749047918942,0.40905329,104610.0,104600.0,0.04328]
[1749047919148,0.40905329,104610.0,104600.0,0.204]
[1749047919588,0.34,104600.0,104580.0,0.23928124]
[1749047919803,0.44214484,104600.0,104580.0,0.23928124]
[1749047920014,0.34,104600.0,104590.0,0.2364]
[1749047920664,0.028695,104610.0,104600.0,0.0163]
[1749047922348,0.028695,104610.0,104600.0,0.17698]
[1749047923180,0.030695,104610.0,104600.0,0.17698]
[1749047923388,0.031695,104610.0,104600.0,0.17698]
[1749047923599,0.031695,104610.0,104600.0,0.16068]
[1749047924451,0.43009277,104610.0,104600.0,0.16068]
[1749047925320,0.603495,104610.0,104600.0,0.16068]
[1749047925526,0.6126058,104610.0,104600.0,0.16068]
[1749047926619,0.62399431,104610.0,104600.0,0.16068]
[1749047928824,0.62403019,104610.0,104600.0,0.16068]
[1749047929271,0.05223019,104610.0,104590.0,0.032]
[1749047929486,0.34,104590.0,104580.0,0.01698124]
[1749047929710,0.34,104590.0,104580.0,0.22090124]
[1749047930786,0.34,104590.0,104580.0,0.06026124]
[1749047931008,0.34,104590.0,104580.0,0.22290124]